fUST/lending_fUST_20250831
["ID","MTS","AMOUNT","RATE_DAILY","PERIOD"]
[382511750,1756652015865,10000.01,0.00016483,2]
[382511751,1756652015888,7814.97027294,0.00016483,2]
[382511752,1756652017045,156.0,8.5e-07,2]
[382511753,1756652018287,156.0,8.5e-07,2]
[382511754,1756652019332,156.0,8.5e-07,2]
[382511755,1756652021142,1717.03972706,0.00017251,2]
[382511756,1756652021168,3282.96027294,0.00017251,2]
[382511757,1756652037757,5000.0,0.00017251,2]
[382511758,1756652040161,162.80084904,0.00017175,2]
[382511759,1756652040473,162.80084902,0.00017175,2]
[382511760,1756652040837,162.80084902,0.00017176,2]
[382511761,1756652041187,162.80084902,0.00017176,2]
[382511762,1756652046376,1065.84633096,0.00017251,2]
[382511763,1756652046401,3934.15366904,0.00017251,2]
[382511764,1756652047564,235.1249331,0.00017175,2]
[382511765,1756652062234,2402.24377826,0.00017175,2]
[382511766,1756652062984,3428.4876196,0.00017251,2]
[382511767,1756652063008,1571.5123804,0.00017251,2]
[382511768,1756652071335,5000.0,0.00017251,2]
[382511769,1756652087330,3428.4976196,0.00017251,2]
[382511770,1756652087356,1571.5023804,0.00017251,2]
[382511771,1756652095290,5000.0,0.00017251,2]
[382511772,1756652107109,3428.5076196,0.00016286,2]
[382511773,1756652107133,4672.0588954,0.00016286,2]
[382511774,1756652110779,5327.9511046,0.00016286,2]
[382511775,1756652110804,4672.0488954,0.00016286,2]
[382511776,1756652111717,5000.0,0.00017251,2]
[382511777,1756652119942,327.9611046,0.00017251,2]
[382511778,1756652119969,4672.0388954,0.00017251,2]
[382511779,1756652136290,5000.0,0.00017251,2]
[382511780,1756652145720,327.9711046,0.00017251,2]
[382511781,1756652145747,97.30910105,0.00017251,2]
[382511782,1756652151507,1932.63983094,0.00017175,2]
[382511783,1756652161808,5000.0,0.00017251,2]
[382511784,1756652163362,235.12493309,0.00017174,2]
[382511785,1756652168298,235.12493309,0.00017176,2]
[382511786,1756652170324,616.08067325,0.00016757,2]
[382511787,1756652170665,308.04033663,0.00016759,2]
[382511788,1756652173247,1575.69019195,0.00016302,2]
[382511789,1756652173272,239.42961005,0.00016302,2]
[382511790,1756652184870,5000.0,0.00017251,2]
[382511791,1756652208806,4760.58038995,0.00017251,2]
[382511792,1756652208834,239.41961005,0.00017251,2]
[382511793,1756652215971,9760.59038995,0.00016327,2]
[382511794,1756652215996,10000.01,0.00016327,2]
[382511795,1756652216021,10000.01,0.00016327,2]
[382511796,1756652216045,10000.01,0.00016327,2]
[382511797,1756652216069,10000.01,0.00016327,2]
[382511798,1756652216092,10000.01,0.00016327,2]
[382511799,1756652216115,10000.01,0.00016327,2]
[382511800,1756652216140,9367.58397225,0.00016327,2]
[382511801,1756652233305,632.42602775,0.00017251,2]
[382511802,1756652233332,4367.57397225,0.00017251,2]
[382511803,1756652244500,666.0,0.00016301,2]
[382511804,1756652247483,203.83846135,0.00017174,2]
[382511805,1756652256947,4762.5975664,0.00017251,2]
[382511806,1756652256976,237.4024336,0.00017251,2]
[382511807,1756652261144,1838.824085,0.00016301,2]
[382511808,1756652281294,5000.0,0.00017251,2]
[382511809,1756652301229,178.12394632,0.00017175,2]
[382511810,1756652305526,2745.65953508,0.00017251,2]
[382511811,1756652305555,2254.34046492,0.00017251,2]
[382511813,1756652330051,5000.0,0.00017251,2]
[382511814,1756652342133,1943.20527723,0.00017174,2]
[382511815,1756652354815,802.46425785,0.00017251,2]
[382511816,1756652354849,4197.53574215,0.00017251,2]
[382511817,1756652377805,5000.0,0.00017251,2]
[382511818,1756652401550,802.47425785,0.00017251,2]
[382511819,1756652401579,4197.52574215,0.00017251,2]
[382511820,1756652424844,5000.0,0.00017251,2]
[382511821,1756652448295,802.48425785,0.00017251,2]
[382511822,1756652448322,4197.51574215,0.00017251,2]
[382511823,1756652451246,409.0,0.00017215,2]
[382511824,1756652459229,660.85504472,0.00017251,2]
[382511825,1756652462017,1004.947223,0.00016273,2]
[382511826,1756652472236,3727.69199013,0.00017251,2]
[382511827,1756652472269,1272.30800987,0.00017251,2]
[382511828,1756652491515,1000.0,0.00016273,2]
[382511829,1756652495595,5000.0,0.00017251,2]
[382511830,1756652519802,2727.70199013,0.00017251,2]
[382511831,1756652519830,2272.29800987,0.00017251,2]
[382511832,1756652535491,1700.30461755,0.00017173,2]
[382511833,1756652543207,5000.0,0.00017251,2]
[382511834,1756652566558,1027.40737258,0.00017251,2]
[382511835,1756652566584,3972.59262742,0.00017251,2]
[382511836,1756652582319,155.45327075,0.00016917,2]
[382511837,1756652590196,5000.0,0.00017251,2]
[382511838,1756652613227,871.96410183,0.00017251,2]
[382511839,1756652613255,4128.03589817,0.00017251,2]
[382511840,1756652636566,195.59199068,0.00017172,2]
[382511841,1756652636885,5000.0,0.00017251,2]
[382511842,1756652638617,195.59199067,0.00017225,2]
[382511843,1756652642335,155.45327075,0.00016917,2]
[382511844,1756652658607,386.89298841,0.00017,14]
[382511845,1756652661232,325.33684973,0.00017251,2]
[382511846,1756652661260,4674.66315027,0.00017251,2]
[382511847,1756652669601,161.93404135,0.00017251,2]
[382511848,1756652670224,1793.9733605,0.00016274,2]
[382511849,1756652684731,3369.43944788,0.00017251,2]
[382511850,1756652684758,1630.56055212,0.00017251,2]
[382511851,1756652702395,155.45327075,0.00016917,2]
[382511852,1756652709806,5000.0,0.00017251,2]
[382511853,1756652718128,151.0,0.00017251,2]
[382511854,1756652719286,151.0,0.00017251,2]
[382511855,1756652720273,151.0,0.00017251,2]
[382511856,1756652721433,151.0,0.00017251,2]
[382511857,1756652722841,151.0,0.00017251,2]
[382511858,1756652723969,164.54648587,0.00017251,2]
[382511859,1756652731959,1668.47680292,0.00017171,2]
[382511860,1756652732856,625.97288834,0.00017251,2]
[382511861,1756652732883,4374.02711166,0.00017251,2]
[382511862,1756652756942,5000.0,0.00017251,2]
[382511863,1756652760483,625.98288834,0.00017251,2]
[382511864,1756652760712,145.01466383,0.00017251,2]
[382511865,1756652761843,513.99836812,0.00017251,2]
[382511866,1756652763064,342.66557874,0.00017251,2]
[382511867,1756652763966,228.44371916,0.00017251,2]
[382511868,1756652764843,152.29581278,0.00017251,2]
[382511869,1756652766005,151.0,0.00017251,2]
[382511870,1756652766834,153.59162555,0.00017251,2]
[382511871,1756652780197,5000.0,0.00017251,2]
[382511872,1756652786573,1000.0,0.00017251,2]
[382511873,1756652787425,1000.0,0.00017251,2]
[382511874,1756652788440,1000.0,0.00017251,2]
[382511875,1756652789470,313.00023182,0.00017251,2]
[382511876,1756652789495,686.99976818,0.00017251,2]
[382511877,1756652790474,1000.0,0.00017251,2]
[382511878,1756652791512,1000.0,0.00017251,2]
[382511880,1756652793455,1270.067264,0.00013699,2]
[382511881,1756652793567,1000.0,0.00017251,2]
[382511882,1756652793986,1000.0,0.00017251,2]
[382511883,1756652794887,1000.0,0.00017251,2]
[382511884,1756652795871,1121.84785891,0.00017251,2]
[382511885,1756652803450,1921.09510891,0.00017251,2]
[382511886,1756652803485,3078.90489109,0.00017251,2]
[382511887,1756652827957,5000.0,0.00017251,2]
[382511888,1756652851201,1921.10510891,0.00017251,2]
[382511889,1756652851228,3046.54054426,0.00017251,2]
[382511890,1756652855916,213.2438617,0.00016271,2]
[382511891,1756652861205,559.21470858,0.00016613,2]
[382511892,1756652863458,2236.85883432,0.00016613,2]
[382511893,1756652865383,3944.15205114,0.00016613,2]
[382511894,1756652865407,1083.7473937,0.00016613,2]
[382511895,1756652882621,180.70105,8.135e-05,2]
[382511896,1756652883064,180.70105,0.00010847,2]
[382511897,1756652883304,180.70105,0.00013559,2]
[382511898,1756652883513,180.70105,0.00016271,2]
[382511899,1756652923212,1459.91720259,0.0001717,2]
[382511900,1756652943717,6733.54120371,0.00016269,2]
[382511901,1756652943743,10000.01,0.00016269,2]
[382511902,1756652943769,3306.85956059,0.00016269,2]
[382511903,1756652943827,645.5111181,0.00016613,2]
[382511904,1756652946185,2579.46242791,0.00016613,2]
[382511905,1756652960570,294.0,0.00017259,3]
[382511906,1756652970594,195.59199067,0.00017169,2]
[382511907,1756653021971,3272.58490273,0.00016269,2]
[382511908,1756653021997,6727.41509727,0.00016269,2]
[382511933,1756653033024,-837.94,0.00017259,3]
[382511934,1756653033034,-565.97,0.00017259,3]
[382511935,1756653033044,-151.0,0.00017261,2]
[382511936,1756653033054,-151.0,0.00017261,2]
[382511937,1756653033064,-151.0,0.00017261,2]
[382511938,1756653033074,-151.0,0.00017261,2]
[382511939,1756653033084,-151.0,0.00017261,2]
[382511940,1756653033094,-151.0,0.00017261,2]
[382511941,1756653033104,-71.94597931,0.00017261,2]
[382511942,1756653033116,-79.05402069,0.00017261,2]
[382511943,1756653033125,-151.0,0.00017261,2]
[382511944,1756653033136,-500.0,0.00017261,2]
[382511945,1756653033145,-209.40437684,0.00017261,2]
[382511946,1756653033155,-151.0,0.00017261,2]
[382511947,1756653033165,-500.0,0.00017261,2]
[382511948,1756653033175,-151.0,0.00017261,2]
[382511949,1756653033185,-500.0,0.00017261,2]
[382511950,1756653033195,-151.0,0.00017261,2]
[382511951,1756653033205,-500.0,0.00017261,2]
[382511952,1756653033215,-500.0,0.00017261,2]
[382511953,1756653033225,-500.0,0.00017261,2]
[382511954,1756653033235,-500.0,0.00017261,2]
[382511955,1756653033245,-500.0,0.00017261,2]
[382511956,1756653033255,-500.0,0.00017261,2]
[382511957,1756653033265,-500.0,0.00017261,2]
[382511958,1756653033275,-500.0,0.00017261,2]
[382511959,1756653033285,-150.77383924,0.00017263,2]
[382511960,1756653033295,-849.0,0.00017263,2]
[382511961,1756653033305,-500.0,0.00017268,2]
[382511962,1756653033315,-355.46317346,0.00017268,2]
[382511963,1756653033325,-300.0,0.00017268,2]
[382511964,1756653033335,-1200.0,0.00017268,2]
[382511965,1756653033344,-300.0,0.00017268,2]
[382511966,1756653033354,-5298.02437074,0.00017269,2]
[382512004,1756653038482,-500.0,0.00017268,2]
[382512006,1756653038492,-500.0,0.00017268,2]
[382512008,1756653038501,-500.0,0.00017268,2]
[382512011,1756653038512,-500.0,0.00017268,2]
[382512013,1756653038521,-500.0,0.00017268,2]
[382512015,1756653038531,-500.0,0.00017268,2]
[382512017,1756653038542,-500.0,0.00017268,2]
[382512019,1756653038552,-500.0,0.00017268,2]
[382512021,1756653038563,-500.0,0.00017268,2]
[382512023,1756653038574,-500.0,0.00017268,2]
[382512025,1756653038585,-500.0,0.00017268,2]
[382512027,1756653038595,-500.0,0.00017268,2]
[382512029,1756653038606,-500.0,0.00017268,2]
[382512031,1756653038615,-385.5301218,0.00017268,2]
[382512033,1756653038626,-500.0,0.00017268,2]
[382512035,1756653038636,-500.0,0.00017268,2]
[382512037,1756653038646,-500.0,0.00017268,2]
[382512039,1756653038657,-500.0,0.00017268,2]
[382512041,1756653038667,-500.0,0.00017268,2]
[382512043,1756653038678,-636.5579071,0.00017268,2]
[382512045,1756653038688,-500.0,0.00017268,2]
[382512047,1756653038698,-500.0,0.00017268,2]
[382512049,1756653038708,-500.0,0.00017268,2]
[382512074,1756653038935,-500.0,0.00017268,2]
[382512076,1756653038946,-500.0,0.00017268,2]
[382512078,1756653038957,-500.0,0.00017268,2]
[382512080,1756653038967,-500.0,0.00017268,2]
[382512082,1756653038976,-500.0,0.00017268,2]
[382512084,1756653038985,-500.0,0.00017268,2]
[382512086,1756653038995,-500.0,0.00017268,2]
[382512088,1756653039005,-500.0,0.00017268,2]
[382512090,1756653039014,-518.78948683,0.00017268,2]
[382512093,1756653039024,-500.0,0.00017268,2]
[382512095,1756653039033,-500.0,0.00017268,2]
[382512096,1756653039042,-640.35487615,0.00017268,2]
[382512098,1756653039053,-500.0,0.00017268,2]
[382512100,1756653039062,-500.0,0.00017268,2]
[382512102,1756653039071,-500.0,0.00017268,2]
[382512104,1756653039080,-250.0,0.00017268,2]
[382512107,1756653039090,-500.0,0.00017268,2]
[382512108,1756653039100,-500.0,0.00017268,2]
[382512110,1756653039109,-500.0,0.00017268,2]
[382512112,1756653039118,-500.0,0.00017268,2]
[382512114,1756653039128,-500.0,0.00017268,2]
[382512117,1756653039139,-500.0,0.00017268,2]
[382512119,1756653039149,-500.0,0.00017268,2]
[382512121,1756653039158,-500.0,0.00017268,2]
[382512123,1756653039168,-500.0,0.00017268,2]
[382512125,1756653039178,-500.0,0.00017268,2]
[382512127,1756653039188,-500.0,0.00017268,2]
[382512129,1756653039197,-500.0,0.00017268,2]
[382512131,1756653039208,-500.0,0.00017268,2]
[382512133,1756653039217,-500.0,0.00017268,2]
[382512135,1756653039227,-500.0,0.00017268,2]
[382512137,1756653039237,-500.0,0.00017268,2]
[382512139,1756653039246,-500.0,0.00017268,2]
[382512141,1756653039256,-500.0,0.00017268,2]
[382512143,1756653039265,-500.0,0.00017268,2]
[382512145,1756653039275,-500.0,0.00017268,2]
[382512147,1756653039284,-485.0,0.00017268,2]
[382512149,1756653039294,-500.0,0.00017268,2]
[382512151,1756653039304,-500.0,0.00017268,2]
[382512153,1756653039314,-500.0,0.00017268,2]
[382512155,1756653039323,-500.0,0.00017268,2]
[382512157,1756653039335,-500.0,0.00017268,2]
[382512159,1756653039344,-500.0,0.00017268,2]
[382512161,1756653039355,-500.0,0.00017268,2]
[382512163,1756653039364,-500.0,0.00017268,2]
[382512165,1756653039375,-500.0,0.00017268,2]
[382512167,1756653039384,-500.0,0.00017268,2]
[382512169,1756653039394,-500.0,0.00017268,2]
[382512171,1756653039403,-500.0,0.00017268,2]
[382512173,1756653039413,-500.0,0.00017268,2]
[382512175,1756653039423,-500.0,0.00017268,2]
[382512177,1756653039433,-500.0,0.00017268,2]
[382512179,1756653039443,-500.0,0.00017268,2]
[382512181,1756653039452,-500.0,0.00017268,2]
[382512183,1756653039462,-500.0,0.00017268,2]
[382512185,1756653039472,-500.0,0.00017268,2]
[382512187,1756653039481,-500.0,0.00017268,2]
[382512189,1756653039490,-500.0,0.00017268,2]
[382512191,1756653039500,-500.0,0.00017268,2]
[382512193,1756653039511,-500.0,0.00017268,2]
[382512195,1756653039520,-500.0,0.00017268,2]
[382512197,1756653039530,-500.0,0.00017268,2]
[382512199,1756653039539,-500.0,0.00017268,2]
[382512201,1756653039548,-500.0,0.00017268,2]
[382512203,1756653039558,-500.0,0.00017268,2]
[382512205,1756653039567,-500.0,0.00017268,2]
[382512207,1756653039577,-500.0,0.00017268,2]
[382512209,1756653039588,-44701.97562926,0.00017269,2]
[382512211,1756653039597,-681.13,0.00017269,2]
[382512213,1756653039606,-808.03,0.00017269,2]
[382512215,1756653039616,-1838.72,0.00017269,2]
[382512217,1756653039626,-2091.66,0.00017269,2]
[382512219,1756653039635,-480.0,0.00017269,2]
[382512221,1756653039645,-1105.62,0.00017269,2]
[382512223,1756653039654,-864.59,0.0001727,2]
[382512225,1756653039664,-480.0,0.0001727,2]
[382512227,1756653039674,-480.0,0.00017271,2]
[382512229,1756653039683,-480.0,0.00017271,2]
[382512231,1756653039693,-480.0,0.00017271,2]
[382512233,1756653039702,-480.0,0.00017271,2]
[382512235,1756653039711,-824.8,0.00017271,2]
[382512237,1756653039721,-992.32,0.00017271,2]
[382512239,1756653039731,-1284.87,0.00017271,2]
[382512241,1756653039741,-966.29,0.00017271,2]
[382512243,1756653039750,-636.5,0.00017271,2]
[382512245,1756653039760,-480.0,0.00017271,2]
[382512247,1756653039770,-480.0,0.00017271,2]
[382512249,1756653039781,-920.41,0.00017271,2]
[382512251,1756653039791,-3290.54,0.00017271,2]
[382512253,1756653039802,-480.0,0.00017271,2]
[382512255,1756653039812,-953.21,0.00017271,2]
[382512257,1756653039823,-480.0,0.00017271,2]
[382512259,1756653039832,-2077.08,0.00017271,2]
[382512261,1756653039844,-3273.98,0.00017271,2]
[382512264,1756653039864,-483.00033591,0.00017273,2]
[382512266,1756653039875,-480.0,0.00017273,2]
[382512268,1756653039885,-480.0,0.00017274,2]
[382512270,1756653039894,-557.95,0.00017274,2]
[382512272,1756653039907,-1294.59,0.00017274,2]
[382512275,1756653039916,-480.0,0.00017274,2]
[382512278,1756653039926,-480.0,0.00017274,2]
[382512280,1756653039937,-480.0,0.00017274,2]
[382512282,1756653039947,-480.0,0.00017274,2]
[382512284,1756653039956,-480.0,0.00017274,2]
[382512286,1756653039965,-480.0,0.00017274,2]
[382512288,1756653039975,-480.0,0.00017274,2]
[382512290,1756653039985,-480.0,0.00017274,2]
[382512292,1756653039994,-480.0,0.00017274,2]
[382512294,1756653040004,-480.0,0.00017274,2]
[382512296,1756653040015,-480.0,0.00017274,2]
[382512298,1756653040025,-816.3,0.00017274,2]
[382512300,1756653040034,-831.34,0.00017274,2]
[382512302,1756653040044,-620.28,0.00017274,2]
[382512304,1756653040054,-712.84,0.00017274,2]
[382512306,1756653040064,-480.0,0.00017274,2]
[382512308,1756653040074,-480.0,0.00017274,2]
[382512310,1756653040083,-480.0,0.00017274,2]
[382512312,1756653040092,-480.0,0.00017274,2]
[382512314,1756653040101,-2018.24,0.00017274,2]
[382512316,1756653040111,-638.33,0.00017274,2]
[382512318,1756653040121,-480.0,0.00017274,2]
[382512320,1756653040131,-480.0,0.00017274,2]
[382512323,1756653040141,-713.12,0.00017274,2]
[382512325,1756653040150,-480.0,0.00017274,2]
[382512327,1756653040160,-480.0,0.00017274,2]
[382512329,1756653040170,-224.34141797,0.00017274,2]
[382512331,1756653040179,-480.0,0.00017274,2]
[382512333,1756653040190,-805.05,0.00017274,2]
[382512335,1756653040200,-952.52,0.00017274,2]
[382512337,1756653040209,-599.24,0.00017274,2]
[382512339,1756653040220,-1064.2,0.00017274,2]
[382512341,1756653040229,-931.84,0.00017274,2]
[382512343,1756653040239,-1365.78,0.00017274,2]
[382512345,1756653040248,-1405.7,0.00017274,2]
[382512347,1756653040258,-480.0,0.00017274,2]
[382512349,1756653040268,-1106.14,0.00017274,2]
[382512351,1756653040278,-480.0,0.00017274,2]
[382512353,1756653040288,-668.05,0.00017274,2]
[382512355,1756653040298,-201.64979696,0.00017274,2]
[382512357,1756653040307,-480.0,0.00017274,2]
[382512359,1756653040317,-480.0,0.00017274,2]
[382512361,1756653040327,-480.0,0.00017274,2]
[382512363,1756653040336,-659.22,0.00017274,2]
[382512365,1756653040347,-480.0,0.00017274,2]
[382512367,1756653040356,-660.61,0.00017274,2]
[382512369,1756653040365,-480.0,0.00017274,2]
[382512371,1756653040375,-480.0,0.00017274,2]
[382512373,1756653040385,-480.0,0.00017274,2]
[382512375,1756653040394,-835.3,0.00017274,2]
[382512377,1756653040404,-995.32,0.00017274,2]
[382512379,1756653040414,-480.0,0.00017274,2]
[382512381,1756653040424,-1060.55,0.00017274,2]
[382512383,1756653040434,-1277.42,0.00017274,2]
[382512385,1756653040443,-853.16,0.00017274,2]
[382512387,1756653040453,-480.0,0.00017274,2]
[382512389,1756653040463,-3167.32,0.00017274,2]
[382512391,1756653040472,-480.0,0.00017274,2]
[382512393,1756653040482,-1226.95,0.00017274,2]
[382512395,1756653040491,-656.61,0.00017274,2]
[382512397,1756653040500,-480.0,0.00017274,2]
[382512399,1756653040510,-480.0,0.00017274,2]
[382512401,1756653040519,-1087.88,0.00017274,2]
[382512403,1756653040529,-1419.44,0.00017274,2]
[382512405,1756653040538,-574.67,0.00017274,2]
[382512407,1756653040548,-480.0,0.00017274,2]
[382512409,1756653040557,-704.44,0.00017274,2]
[382512411,1756653040567,-650.53,0.00017274,2]
[382512413,1756653040576,-1394.27,0.00017274,2]
[382512415,1756653040586,-480.0,0.00017274,2]
[382512417,1756653040595,-480.0,0.00017274,2]
[382512419,1756653040604,-480.0,0.00017274,2]
[382512421,1756653040614,-480.0,0.00017274,2]
[382512423,1756653040624,-969.84,0.00017274,2]
[382512425,1756653040634,-1305.87,0.00017274,2]
[382512427,1756653040644,-480.0,0.00017274,2]
[382512429,1756653040654,-764.01,0.00017274,2]
[382512431,1756653040663,-480.0,0.00017274,2]
[382512433,1756653040673,-1523.84,0.00017274,2]
[382512435,1756653040683,-1015.1,0.00017274,2]
[382512437,1756653040692,-480.0,0.00017274,2]
[382512439,1756653040702,-1327.23,0.00017274,2]
[382512441,1756653040711,-1415.73,0.00017274,2]
[382512443,1756653040720,-480.0,0.00017274,2]
[382512445,1756653040730,-544.6,0.00017274,2]
[382512447,1756653040740,-1506.56,0.00017274,2]
[382512449,1756653040750,-353.68286026,0.00017274,2]
[382512451,1756653040760,-480.0,0.00017274,2]
[382512453,1756653040770,-979.35,0.00017274,2]
[382512455,1756653040780,-5026.62,0.00017274,2]
[382512457,1756653040789,-1283.66,0.00017274,2]
[382512459,1756653040799,-1282.15,0.00017274,2]
[382512461,1756653040809,-480.0,0.00017274,2]
[382512463,1756653040820,-480.0,0.00017274,2]
[382512465,1756653040830,-1618.09,0.00017274,2]
[382512467,1756653040839,-480.0,0.00017274,2]
[382512469,1756653040849,-480.0,0.00017274,2]
[382512471,1756653040863,-480.0,0.00017274,2]
[382512473,1756653040873,-2393.94,0.00017274,2]
[382512475,1756653040883,-480.0,0.00017274,2]
[382512477,1756653040892,-480.0,0.00017274,2]
[382512479,1756653040902,-602.15,0.00017274,2]
[382512481,1756653040911,-480.0,0.00017274,2]
[382512483,1756653040920,-527.88,0.00017274,2]
[382512485,1756653040931,-480.0,0.00017274,2]
[382512487,1756653040941,-1086.1,0.00017274,2]
[382512489,1756653040950,-488.12,0.00017274,2]
[382512491,1756653040961,-480.0,0.00017274,2]
[382512493,1756653040970,-480.0,0.00017274,2]
[382512495,1756653040980,-1661.57,0.00017274,2]
[382512496,1756653040989,-480.0,0.00017274,2]
[382512498,1756653040998,-480.0,0.00017274,2]
[382512500,1756653041008,-746.42,0.00017274,2]
[382512502,1756653041018,-480.0,0.00017274,2]
[382512504,1756653041028,-480.0,0.00017274,2]
[382512507,1756653041037,-1327.28,0.00017274,2]
[382512508,1756653041047,-480.0,0.00017274,2]
[382512510,1756653041056,-480.0,0.00017274,2]
[382512512,1756653041066,-480.0,0.00017274,2]
[382512514,1756653041076,-480.0,0.00017274,2]
[382512516,1756653041085,-480.0,0.00017274,2]
[382512519,1756653041094,-574.24,0.00017274,2]
[382512520,1756653041104,-818.75,0.00017274,2]
[382512523,1756653041113,-7050.52,0.00017274,2]
[382512524,1756653041123,-1221.28,0.00017274,2]
[382512526,1756653041132,-480.0,0.00017274,2]
[382512528,1756653041141,-480.0,0.00017274,2]
[382512530,1756653041151,-480.0,0.00017274,2]
[382512532,1756653041160,-521.69,0.00017274,2]
[382512534,1756653041170,-944.9,0.00017275,2]
[382512536,1756653041179,-705.5,0.00017275,2]
[382512538,1756653041188,-480.0,0.00017275,2]
[382512540,1756653041198,-480.0,0.00017275,2]
[382512542,1756653041207,-480.0,0.00017275,2]
[382512545,1756653041217,-815.75,0.00017275,2]
[382512546,1756653041226,-1243.41,0.00017275,2]
[382512548,1756653041235,-480.0,0.00017275,2]
[382512551,1756653041245,-480.0,0.00017275,2]
[382512553,1756653041254,-480.0,0.00017275,2]
[382512554,1756653041264,-830.1,0.00017275,2]
[382512556,1756653041273,-1035.6,0.00017275,2]
[382512558,1756653041283,-615.64,0.00017275,2]
[382512560,1756653041292,-480.0,0.00017275,2]
[382512562,1756653041301,-1667.6,0.00017275,2]
[382512564,1756653041310,-480.0,0.00017275,2]
[382512566,1756653041320,-480.0,0.00017275,2]
[382512568,1756653041329,-480.0,0.00017275,2]
[382512570,1756653041338,-531.06,0.00017275,2]
[382512572,1756653041347,-566.77,0.00017275,2]
[382512574,1756653041356,-480.0,0.00017275,2]
[382512576,1756653041366,-1272.66,0.00017275,2]
[382512578,1756653041375,-1583.62,0.00017275,2]
[382512580,1756653041384,-480.0,0.00017275,2]
[382512582,1756653041394,-480.0,0.00017275,2]
[382512584,1756653041403,-1368.22,0.00017275,2]
[382512586,1756653041412,-480.0,0.00017275,2]
[382512588,1756653041421,-480.0,0.00017275,2]
[382512590,1756653041431,-1272.68,0.00017275,2]
[382512592,1756653041441,-480.0,0.00017275,2]
[382512594,1756653041451,-480.0,0.00017275,2]
[382512596,1756653041462,-499.32,0.00017275,2]
[382512598,1756653041472,-713.53,0.00017275,2]
[382512600,1756653041481,-710.34,0.00017275,2]
[382512602,1756653041491,-480.0,0.00017275,2]
[382512604,1756653041500,-3102.16,0.00017275,2]
[382512606,1756653041510,-642.82,0.00017275,2]
[382512608,1756653041519,-570.63,0.00017275,2]
[382512610,1756653041528,-777.62,0.00017275,2]
[382512612,1756653041537,-1175.18,0.00017275,2]
[382512614,1756653041547,-1225.11,0.00017275,2]
[382512616,1756653041556,-1053.41,0.00017275,2]
[382512618,1756653041566,-5549.6,0.00017275,2]
[382512620,1756653041576,-925.34,0.00017275,2]
[382512623,1756653041585,-480.0,0.00017275,2]
[382512625,1756653041595,-480.0,0.00017275,2]
[382512627,1756653041604,-1135.85,0.00017275,2]
[382512629,1756653041614,-480.0,0.00017275,2]
[382512631,1756653041623,-480.0,0.00017275,2]
[382512633,1756653041632,-1502.43,0.00017275,2]
[382512635,1756653041641,-667.44,0.00017275,2]
[382512637,1756653041650,-695.78,0.00017275,2]
[382512639,1756653041660,-1249.12,0.00017275,2]
[382512641,1756653041669,-1548.11,0.00017275,2]
[382512643,1756653041679,-455.96158309,0.00017275,2]
[382512645,1756653041689,-1661.52,0.00017275,2]
[382512647,1756653041698,-1102.57,0.00017275,2]
[382512649,1756653041707,-1580.99,0.00017275,2]